lending/lending_fUSD_20241229
["ID","MTS","AMOUNT","RATE_DAILY","PERIOD"]
[347071987,1735489875026,-500.0,0.00012908,2]
[347071988,1735489875036,-500.0,0.00012908,2]
[347071989,1735489875047,-299.18772298,0.00012908,2]
[347071990,1735489875057,-500.0,0.00012909,2]
[347071991,1735489875066,-500.0,0.00012909,2]
[347071992,1735489875076,-500.0,0.00012909,2]
[347071993,1735489875085,-500.0,0.00012909,2]
[347071994,1735489875096,-500.0,0.00012909,2]
[347071995,1735489875105,-500.0,0.00012909,2]
[347071996,1735489875114,-500.0,0.00012909,2]
[347071997,1735489875123,-635.03,0.00012909,2]
[347071998,1735489875134,-500.0,0.00012909,2]
[347071999,1735489875143,-739.18,0.00012909,2]
[347072000,1735489875153,-500.0,0.00012909,2]
[347072001,1735489875162,-1016.64,0.00012909,2]
[347072002,1735489875172,-3511.19,0.00012909,2]
[347072003,1735489875181,-151.0,0.00012909,2]
[347072004,1735489875190,-831.8,0.00012909,2]
[347072005,1735489875200,-151.0,0.00012909,2]
[347072006,1735489875209,-1944.21,0.00012909,2]
[347072007,1735489875219,-151.0,0.00012909,2]
[347072008,1735489875228,-500.0,0.00012909,2]
[347072009,1735489875238,-500.0,0.00012909,2]
[347072010,1735489875247,-1205.91,0.00012909,2]
[347072011,1735489875256,-500.0,0.00012909,2]
[347072012,1735489875266,-3599.17,0.00012909,2]
[347072013,1735489875275,-500.0,0.00012909,7]
[347072014,1735489875284,-778.37,0.00012909,2]
[347072015,1735489875294,-764.39,0.00012909,2]
[347072016,1735489875304,-500.0,0.00012909,2]
[347072017,1735489875314,-858.22,0.00012909,2]
[347072018,1735489875325,-500.0,0.00012909,2]
[347072019,1735489875334,-500.0,0.00012909,2]
[347072020,1735489875344,-1078.5,0.00012909,2]
[347072021,1735489875353,-500.0,0.00012909,2]
[347072022,1735489875363,-2340.55,0.00012909,2]
[347072023,1735489875372,-1053.53,0.00012909,2]
[347072024,1735489875381,-151.0,0.00012909,2]
[347072025,1735489875391,-531.43,0.00012909,2]
[347072026,1735489875400,-151.0,0.00012909,2]
[347072027,1735489875410,-500.0,0.00012909,2]
[347072028,1735489875419,-1041.24,0.00012909,2]
[347072029,1735489875429,-3755.9,0.00012909,2]
[347072030,1735489875438,-500.0,0.00012909,2]
[347072031,1735489875448,-500.0,0.00012909,2]
[347072032,1735489875458,-500.0,0.00012909,2]
[347072033,1735489875467,-679.8,0.00012909,2]
[347072034,1735489875477,-3562.83,0.00012909,2]
[347072035,1735489875487,-500.0,0.00012909,2]
[347072036,1735489875496,-662.99,0.00012909,2]
[347072037,1735489875505,-500.0,0.00012909,2]
[347072038,1735489875514,-530.53,0.00012909,2]
[347072039,1735489875523,-500.0,0.00012909,2]
[347072040,1735489875533,-2528.19,0.00012909,2]
[347072041,1735489875542,-517.72,0.00012909,2]
[347072042,1735489875551,-676.14,0.00012909,2]
[347072043,1735489875561,-500.0,0.00012909,2]
[347072044,1735489875570,-869.7,0.00012909,2]
[347072045,1735489875579,-500.0,0.00012909,2]
[347072046,1735489875588,-885.94,0.00012909,2]
[347072047,1735489875597,-500.0,0.00012909,2]
[347072048,1735489875606,-500.0,0.00012909,2]
[347072049,1735489875616,-1387.4,0.00012909,2]
[347072050,1735489875625,-500.0,0.00012909,2]
[347072051,1735489875634,-500.0,0.00012909,2]
[347072052,1735489875643,-707.66,0.00012909,2]
[347072053,1735489875653,-1169.27,0.00012909,2]
[347072054,1735489875662,-6099.26,0.00012909,2]
[347072055,1735489875671,-732.6,0.00012909,2]
[347072056,1735489875680,-500.0,0.00012909,2]
[347072057,1735489875689,-1183.54,0.00012909,2]
[347072058,1735489875698,-555.13,0.00012909,2]
[347072059,1735489875707,-3945.51,0.00012909,2]
[347072060,1735489875717,-500.0,0.00012909,2]
[347072061,1735489875726,-500.0,0.00012909,2]
[347072062,1735489875736,-2075.97,0.00012909,2]
[347072063,1735489875745,-654.05,0.00012909,2]
[347072064,1735489875756,-1345.89,0.00012909,2]
[347072065,1735489875766,-14284.14,0.00012909,2]
[347072066,1735489875775,-1061.45,0.00012909,2]
[347072067,1735489875785,-500.0,0.00012909,2]
[347072068,1735489875795,-1058.29,0.00012909,2]
[347072069,1735489875807,-500.0,0.00012909,2]
[347072070,1735489875816,-500.0,0.00012909,2]
[347072071,1735489875825,-10147.36,0.00012909,2]
[347072072,1735489875836,-853.86,0.00012909,2]
[347072073,1735489875846,-1697.41,0.00012909,2]
[347072074,1735489875855,-500.0,0.00012909,2]
[347072075,1735489875864,-1107.23,0.00012909,2]
[347072076,1735489875873,-547.58,0.00012909,2]
[347072077,1735489875883,-1236.84,0.00012909,2]
[347072078,1735489875892,-500.0,0.00012909,2]
[347072079,1735489875901,-1403.26,0.00012909,2]
[347072080,1735489875911,-638.45,0.00012909,2]
[347072081,1735489875920,-954.3,0.00012909,2]
[347072082,1735489875929,-749.83,0.00012909,2]
[347072083,1735489875938,-1321.25,0.00012909,2]
[347072084,1735489875947,-3600.62,0.00012909,2]
[347072085,1735489875957,-750.79,0.00012909,2]
[347072086,1735489875966,-776.0,0.00012909,2]
[347072087,1735489875975,-2295.24,0.00012909,2]
[347072088,1735489875984,-743.69,0.00012909,2]
[347072089,1735489875993,-637.29,0.00012909,2]
[347072090,1735489876002,-528.46,0.00012909,2]
[347072091,1735489876012,-16509.04,0.00012909,2]
[347072092,1735489876021,-1355.28,0.00012909,2]
[347072093,1735489876031,-2104.69,0.00012909,2]
[347072094,1735489876040,-893.81,0.00012909,2]
[347072095,1735489876052,-773.78,0.00012909,2]
[347072096,1735489876061,-890.01,0.00012909,2]
[347072097,1735489876070,-1251.31,0.00012909,2]
[347072098,1735489876079,-500.0,0.00012909,2]
[347072099,1735489876089,-500.0,0.00012909,2]
[347072100,1735489876099,-909.43,0.00012909,2]
[347072101,1735489876108,-500.0,0.00012909,2]
[347072102,1735489876118,-1051.79,0.00012909,2]
[347072103,1735489876127,-1988.73,0.00012909,2]
[347072104,1735489876136,-500.0,0.00012909,2]
[347072105,1735489876146,-1184.67,0.00012909,2]
[347072106,1735489876155,-500.0,0.00012909,2]
[347072107,1735489876164,-2308.07,0.00012909,2]
[347072108,1735489876174,-500.0,0.00012909,2]
[347072109,1735489876183,-705.54,0.00012909,2]
[347072110,1735489876192,-500.0,0.00012909,2]
[347072111,1735489876202,-1060.41,0.00012909,2]
[347072112,1735489876211,-2299.51,0.00012909,2]
[347072113,1735489876220,-851.46,0.00012909,2]
[347072114,1735489876230,-500.0,0.00012909,2]
[347072115,1735489876239,-1853.38,0.00012909,2]
[347072116,1735489876248,-964.97,0.00012909,2]
[347072117,1735489876257,-1075.86,0.00012909,2]
[347072118,1735489876267,-500.0,0.00012909,2]
[347072119,1735489876276,-2115.26,0.00012909,2]
[347072120,1735489876285,-1352.22,0.00012909,2]
[347072121,1735489876295,-500.0,0.00012909,2]
[347072122,1735489876305,-639.4,0.00012909,2]
[347072123,1735489876314,-849.33,0.00012909,2]
[347072124,1735489876323,-211.745649,0.0001291,2]
[347072125,1735489876332,-151.0,0.0001291,2]
[347072126,1735489876341,-3181.36,0.0001291,2]
[347072127,1735489876351,-6329.31,0.0001291,2]
[347072128,1735489876360,-3277.49,0.0001291,2]
[347072129,1735489876369,-12312.34,0.0001291,2]
[347072130,1735489876378,-500.0,0.0001291,2]
[347072131,1735489876388,-3574.32,0.0001291,2]
[347072132,1735489876397,-151.0,0.0001291,2]
[347072133,1735489876406,-5169.61,0.0001291,2]
[347072134,1735489876416,-3943.77,0.0001291,2]
[347072135,1735489876425,-3305.08,0.0001291,2]
[347072136,1735489876434,-151.0,0.0001291,2]
[347072137,1735489876444,-739.21,0.0001291,2]
[347072138,1735489876453,-7280.0,0.0001291,2]
[347072139,1735489876462,-151.0,0.0001291,2]
[347072140,1735489876472,-151.0,0.0001291,2]
[347072141,1735489876481,-751.24,0.0001291,2]
[347072142,1735489876491,-719.93,0.0001291,2]
[347072143,1735489876499,-1192.86,0.0001291,2]
[347072144,1735489876508,-1143.16,0.0001291,2]
[347072145,1735489876693,-151.0,0.0001291,2]
[347072146,1735489876702,-2691.11,0.0001291,2]
[347072147,1735489876712,-151.0,0.0001291,2]
[347072148,1735489876721,-2885.5,0.0001291,2]
[347072149,1735489876730,-236.902947,0.0001291,2]
[347072150,1735489876739,-236.902947,0.0001291,2]
[347072151,1735489876748,-2387.4,0.0001291,2]
[347072152,1735489876760,-4451.17,0.0001291,2]
[347072153,1735489876769,-2274.63,0.0001291,2]
[347072154,1735489876778,-151.0,0.0001291,2]
[347072155,1735489876788,-3460.09,0.0001291,2]
[347072156,1735489876803,-184.38878,0.0001291,2]
[347072157,1735489876811,-922.86,0.0001291,2]
[347072158,1735489876820,-184.38878,0.0001291,2]
[347072159,1735489876832,-1156.67,0.0001291,2]
[347072160,1735489876841,-2396.52,0.0001291,2]
[347072161,1735489876850,-151.0,0.0001291,2]
[347072162,1735489876860,-3499.32,0.0001291,2]
[347072163,1735489876869,-151.0,0.0001291,2]
[347072164,1735489876878,-2481.53,0.0001291,2]
[347072165,1735489876888,-2018.38,0.0001291,2]
[347072166,1735489876897,-683.43,0.0001291,2]
[347072167,1735489876906,-151.0,0.0001291,2]
[347072168,1735489876916,-5328.55,0.0001291,2]
[347072169,1735489876926,-2716.03,0.0001291,2]
[347072170,1735489876936,-3917.79,0.0001291,2]
[347072171,1735489876946,-1605.45,0.0001291,2]
[347072172,1735489876956,-45088.26,0.0001291,2]
[347072173,1735489876965,-28481.33,0.0001291,2]
[347072174,1735489876975,-6385.49,0.0001291,2]
[347072175,1735489876985,-151.0,0.00012911,2]
[347072176,1735489876994,-151.0,0.00012911,2]
[347072177,1735489877004,-1291.66,0.00012911,2]
[347072178,1735489877014,-1926.58,0.00012911,2]
[347072179,1735489877024,-4336.05,0.00012911,2]
[347072180,1735489877034,-5033.79,0.00012911,2]
[347072181,1735489877043,-564.3,0.00012946,2]
[347072182,1735489877054,-500000.0,0.0001295,2]
[347072183,1735489877063,-151.0,0.0001295,2]
[347072184,1735489877073,-151.0,0.0001295,2]
[347072185,1735489877082,-151.0,0.0001295,2]
[347072186,1735489877092,-285.870443,0.0001295,2]
[347072187,1735489877101,-153.728547,0.0001295,2]
[347072188,1735489877109,-151.0,0.0001295,2]
[347072189,1735489877119,-151.0,0.0001295,2]
[347072190,1735489877128,-153.041182,0.0001295,2]
[347072191,1735489877137,-151.0,0.0001295,2]
[347072192,1735489877146,-151.0,0.0001295,2]
[347072193,1735489877155,-398000.0,0.0001296,2]
[347072194,1735489877164,-151.0,0.0001296,2]
[347072195,1735489877173,-261.828647,0.0001296,2]
[347072196,1735489877182,-151.0,0.0001296,2]
[347072197,1735489877191,-236.902947,0.0001296,2]
[347072198,1735489877201,-236.902947,0.0001296,2]
[347072199,1735489877211,-151.0,0.0001296,2]
[347072200,1735489877219,-184.38878,0.0001296,2]
[347072201,1735489877229,-184.38878,0.0001296,2]
[347072202,1735489877239,-151.0,0.0001296,2]
[347072203,1735489877247,-178.014164,0.0001296,2]
[347072204,1735489877256,-151.0,0.0001296,2]
[347072205,1735489877265,-8968.63103779,0.0001298,2]
[347072206,1735489877274,-8578.85138444,0.00012985,2]
[347072207,1735489877284,-2980.6040776,0.00012991,2]
[347072208,1735489877295,-4517.4745196,0.00012991,2]
[347072209,1735489877304,-1461.7398486,0.00012991,2]
[347072210,1735489877313,-8418.5427828,0.00012991,2]
[347072211,1735489877322,-514.3286254,0.00012994,2]
[347072212,1735489877331,-150.064,0.00012998,2]
[347072213,1735489877341,-3457.0,0.00012999,2]
[347072214,1735489877350,-4414.5988324,0.00013,2]
[347072215,1735489877360,-635753.29022475,0.00013,2]
[347072216,1735489877369,-4298181.84777468,0.00013,2]
[347072217,1735489877379,-816.93387341,0.00013,2]
[347072218,1735489877388,-2199843.24801078,0.00013,2]
[347072219,1735489877398,-250.0,0.00013,2]
[347072220,1735489877407,-362.0,0.00013,2]
[347072221,1735489877416,-600.0,0.00013,2]
[347072222,1735489877425,-150.0,0.00013,2]
[347072223,1735489877434,-150.0,0.00013,2]
[347072224,1735489877444,-150.0,0.00013,2]
[347072225,1735489877453,-150.0,0.00013,2]
[347072226,1735489877462,-150.0,0.00013,2]
[347072227,1735489877471,-88688.38088414,0.00013,2]
[347072228,1735489877480,-12434.5999218,0.00013,2]
[347072229,1735489877490,-555.60765394,0.00013,2]
[347072230,1735489877500,-6006.71421154,0.00013,2]
[347072231,1735489877509,-8820.23854248,0.00013,2]
[347072232,1735489877518,-4931.76588103,0.00013,2]
[347072233,1735489877527,-2529842.28401097,0.00013,2]
[347072234,1735489877536,-151.0,0.00013,2]
[347072235,1735489877547,-151.0,0.00013,2]
[347072236,1735489877556,-217.609615,0.00013,2]
[347072237,1735489877565,-151.0,0.00013,2]
[347072238,1735489877575,-151.54444,0.00013,2]
[347072239,1735489877584,-151.0,0.00013,2]
[347072240,1735489877593,-151.0,0.00013,2]
[347072241,1735489877603,-151.0,0.00013,2]
[347072242,1735489877612,-151.0,0.00013,2]
[347072243,1735489877621,-151.0,0.00013,2]
[347072244,1735489877631,-151.0,0.00013,2]
[347072245,1735489877640,-151.0,0.00013,2]
[347072246,1735489877649,-175.810665,0.00013,2]
[347072247,1735489877658,-151.0,0.00013,2]
[347072248,1735489877667,-151.0,0.00013,2]
[347072249,1735489877677,-151.0,0.00013,2]
[347072250,1735489877686,-151.0,0.00013,2]
[347072251,1735489877695,-151.0,0.00013,2]
[347072252,1735489877705,-151.0,0.00013,2]
[347072253,1735489877714,-151.0,0.00013,2]
[347072254,1735489877724,-151.0,0.00013,2]
[347072255,1735489877733,-151.0,0.00013,2]
[347072256,1735489877742,-151.0,0.00013,2]
[347072257,1735489877752,-178.666252,0.00013,2]
[347072258,1735489877764,-151.0,0.00013,2]
[347072259,1735489877773,-294.711435,0.00013,2]
[347072260,1735489877784,-236.902947,0.00013,2]
[347072261,1735489877795,-236.902947,0.00013,2]
[347072262,1735489877804,-236.902947,0.00013,2]
[347072263,1735489877814,-236.902947,0.00013,2]
[347072264,1735489877823,-236.902947,0.00013,2]
[347072265,1735489877834,-236.902952,0.00013,2]
[347072266,1735489877844,-500.0,0.00013,2]
[347072267,1735489877854,-152.78616419,0.00013,2]
[347072268,1735489877863,-500.0,0.00013,2]
[347072269,1735489877872,-150.0,0.00013,2]
[347072270,1735489877882,-260.05290371,0.00013,2]
[347072271,1735489877892,-500.0,0.00013,2]
[347072272,1735489877902,-150.0,0.00013,2]
[347072273,1735489877911,-266.62959179,0.00013,2]
[347072274,1735489877920,-150.23106515,0.00013,2]
[347072275,1735489877929,-500.0,0.00013,2]
[347072276,1735489877938,-150.0,0.00013,2]
[347072277,1735489877948,-3793.0,0.00013,2]
[347072278,1735489877957,-151.0,0.00013,2]
[347072279,1735489877967,-151.0,0.00013,2]
[347072280,1735489877976,-274.446512,0.00013,2]
[347072281,1735489877985,-184.38878,0.00013,2]
[347072282,1735489877994,-2241.0,0.00013,2]
[347072283,1735489878004,-184.38878,0.00013,2]
[347072284,1735489878014,-184.38878,0.00013,2]
[347072285,1735489878024,-184.38878,0.00013,2]
[347072286,1735489878034,-184.38878,0.00013,2]
[347072287,1735489878045,-184.388777,0.00013,2]
[347072288,1735489878056,-151.0,0.00013,2]
[347072289,1735489878065,-151.0,0.00013,2]
[347072290,1735489878074,-151.0,0.00013,2]
[347072291,1735489878084,-151.0,0.00013,2]
[347072292,1735489878094,-151.0,0.00013,2]
[347072293,1735489878104,-151.0,0.00013,2]
[347072294,1735489878114,-500.0,0.00013,2]
[347072295,1735489878124,-150.0,0.00013016,2]
[347072296,1735489878133,-5105.05936099,0.0001305,2]
[347072297,1735489878143,-158.25,0.00013052,2]
[347072298,1735489878153,-500.0,0.00013068,2]
[347072299,1735489878163,-510.97,0.00013082,2]
[347072300,1735489878173,-1306.56,0.00013082,2]
[347072301,1735489878183,-500.0,0.00013082,2]
[347072302,1735489878192,-968.82,0.00013082,2]
[347072303,1735489878201,-1952.26,0.00013082,2]
[347072304,1735489878211,-1407.8,0.00013082,2]
[347072305,1735489878221,-1583.19,0.00013082,2]
[347072306,1735489878231,-1048.33,0.00013082,2]
[347072307,1735489878241,-900.45,0.00013082,2]
[347072308,1735489878251,-669.37,0.00013082,2]
[347072309,1735489878260,-1013.65,0.00013082,2]
[347072310,1735489878270,-1333.84,0.00013082,2]
[347072311,1735489878280,-701.57,0.00013082,2]
[347072312,1735489878290,-616.81,0.00013082,2]
[347072313,1735489878301,-1458.91,0.00013082,2]
[347072314,1735489878311,-1791.59,0.00013082,2]
[347072315,1735489878321,-500.0,0.00013082,2]
[347072316,1735489878331,-500.0,0.00013082,2]
[347072317,1735489878340,-500.0,0.00013082,2]
[347072318,1735489878350,-500.0,0.00013082,2]
[347072319,1735489878360,-500.0,0.00013082,2]
[347072320,1735489878370,-500.0,0.00013082,2]
[347072321,1735489878380,-887.59,0.00013082,2]
[347072322,1735489878389,-2024.5,0.00013082,2]
[347072323,1735489878399,-1199.76,0.00013082,2]
[347072324,1735489878409,-1139.1,0.00013082,2]
[347072325,1735489878418,-500.0,0.00013082,2]
[347072326,1735489878428,-1849.25,0.00013082,2]
[347072327,1735489878438,-834.81,0.00013082,2]
[347072328,1735489878448,-1070.95,0.00013082,2]
[347072329,1735489878457,-500.0,0.00013082,2]
[347072330,1735489878467,-936.54,0.00013082,2]
[347072331,1735489878477,-500.0,0.00013082,2]
[347072332,1735489878487,-2044.8,0.00013082,2]
[347072333,1735489878497,-1357.53,0.00013082,2]
[347072334,1735489878507,-852.21,0.00013082,2]
[347072335,1735489878516,-664.74,0.00013082,2]
[347072336,1735489878526,-2081.2,0.00013082,2]
[347072337,1735489878535,-500.0,0.00013082,2]
[347072338,1735489878545,-1193.34,0.00013082,2]
[347072339,1735489878555,-1949.38,0.00013082,2]
[347072340,1735489878565,-1499.21,0.00013082,2]
[347072341,1735489878575,-957.19,0.00013082,2]
[347072342,1735489878585,-1086.74,0.00013082,2]
[347072343,1735489878595,-1671.48,0.00013082,2]
[347072344,1735489878604,-1109.88,0.00013082,2]
[347072345,1735489878614,-1401.41,0.00013082,2]
[347072346,1735489878624,-2210.72,0.00013082,2]
[347072347,1735489878634,-2145.94,0.00013082,2]
[347072348,1735489878645,-2179.71,0.00013082,2]
[347072349,1735489878655,-1629.52,0.00013083,2]
[347072350,1735489878664,-1138.87,0.00013083,2]
[347072351,1735489878674,-526.0,0.00013083,2]
[347072352,1735489878682,-872.22,0.00013083,2]
[347072353,1735489878692,-1239.13,0.00013083,2]
[347072354,1735489878701,-947.43,0.00013083,2]
[347072355,1735489878711,-1354.94,0.00013083,2]
[347072356,1735489878722,-1847.85,0.00013083,2]
[347072357,1735489878731,-2077.72,0.00013083,2]
[347072358,1735489878741,-885.81,0.00013083,2]
[347072359,1735489878752,-1258.17,0.00013083,2]
[347072360,1735489878767,-1096.6,0.00013083,2]
[347072361,1735489878777,-1647.5,0.00013083,2]
[347072362,1735489878787,-936.49,0.00013083,2]
[347072363,1735489878799,-1965.02,0.00013083,2]
[347072364,1735489878809,-500.0,0.00013083,2]
[347072365,1735489878819,-1270.11,0.00013083,2]
[347072366,1735489878828,-735.69,0.00013083,2]
[347072367,1735489878838,-1915.81,0.00013083,2]
[347072368,1735489878847,-1704.31,0.00013083,2]
[347072369,1735489878857,-601.41,0.00013083,2]
[347072370,1735489878867,-842.62,0.00013083,2]
[347072371,1735489878876,-917.37,0.00013083,2]
[347072372,1735489878886,-1178.93,0.00013083,2]
[347072373,1735489878896,-1187.17,0.00013083,2]
[347072374,1735489878905,-500.0,0.00013083,2]
[347072375,1735489878914,-857.11,0.00013083,2]
[347072376,1735489878925,-564.3,0.00013083,2]
[347072377,1735489878935,-637.8,0.00013083,2]
[347072378,1735489878945,-1174.42,0.00013083,2]
[347072379,1735489878955,-1426.37,0.00013083,2]
[347072380,1735489878964,-591.13,0.00013083,2]
[347072381,1735489878974,-901.33,0.00013083,2]
[347072382,1735489878984,-500.0,0.00013083,2]
[347072383,1735489878995,-500.0,0.00013083,2]
[347072384,1735489879004,-2098.83,0.00013083,2]
[347072385,1735489879014,-896.49,0.00013083,2]
[347072386,1735489879023,-1070.04,0.00013083,2]
[347072387,1735489879033,-794.28,0.00013083,2]
[347072388,1735489879042,-500.0,0.00013083,2]
[347072389,1735489879054,-987.86,0.00013083,2]
[347072390,1735489879063,-1547.13,0.00013083,2]
[347072391,1735489879073,-676.15,0.00013083,2]
[347072392,1735489879082,-1819.79,0.00013083,2]
[347072393,1735489879092,-1109.01,0.00013083,2]
[347072394,1735489879101,-1601.3,0.00013083,2]
[347072395,1735489879112,-1018.37,0.00013083,2]
[347072396,1735489879122,-1282.75,0.00013083,2]
[347072397,1735489879131,-1716.82,0.00013083,2]
[347072398,1735489879141,-1084.55,0.00013083,2]
[347072399,1735489879151,-500.0,0.00013083,2]
[347072400,1735489879160,-936.71,0.00013083,2]
[347072401,1735489879170,-712.64,0.00013083,2]
[347072402,1735489879180,-837.44,0.00013083,2]
[347072403,1735489879190,-1790.34,0.00013083,2]
[347072404,1735489879200,-966.27,0.00013083,2]
[347072405,1735489879210,-702.86,0.00013083,2]
[347072406,1735489879219,-1154.03,0.00013083,2]
[347072407,1735489879230,-911.82,0.00013083,2]
[347072408,1735489879239,-786.78,0.00013083,2]
[347072409,1735489879249,-991.76,0.00013083,2]
[347072410,1735489879259,-1789.48,0.00013083,2]
[347072411,1735489879269,-500.0,0.00013083,2]
[347072412,1735489879278,-538.54,0.00013083,2]
[347072413,1735489879288,-918.79,0.00013083,2]
[347072414,1735489879299,-743.62,0.00013083,2]
[347072415,1735489879309,-528.78,0.00013083,2]
[347072416,1735489879319,-1250.82,0.00013083,2]
[347072417,1735489879330,-871.83,0.00013083,2]
[347072418,1735489879339,-2412.7,0.00013083,2]
[347072419,1735489879350,-1819.03,0.00013083,2]
[347072420,1735489879360,-2491.36,0.00013083,2]
[347072421,1735489879370,-186.777211,0.00013094,2]
[347072422,1735489879379,-19983.25908196,0.000131,3]
[347072423,1735489879389,-202.6,0.000131,2]
[347072424,1735489879399,-150.0,0.00013103,2]
[347072425,1735489879409,-186.281937,0.00013113,2]
[347072426,1735489879418,-177.608199,0.00013113,2]
[347072427,1735489879428,-208.604514,0.00013113,2]
[347072428,1735489879438,-2067.06001,0.0001316,2]
[347072429,1735489879447,-1805.92,0.0001318,2]
[347072430,1735489879457,-5215.12,0.0001318,2]
[347072431,1735489879467,-2890.03,0.0001318,2]
[347072432,1735489879476,-4902.25,0.0001318,2]
[347072433,1735489879485,-500.0,0.0001318,2]
[347072434,1735489879495,-1801.91,0.0001318,2]
[347072435,1735489879504,-3264.87,0.0001318,2]
[347072436,1735489879513,-1526.95,0.0001318,2]
[347072437,1735489879524,-793.71,0.0001318,2]
[347072438,1735489879533,-4566.76,0.0001318,2]
[347072439,1735489879543,-4837.94,0.0001318,2]
[347072440,1735489879555,-1940.64,0.0001318,2]
[347072441,1735489879564,-1046.88,0.0001318,2]
[347072442,1735489879574,-17156.74,0.0001318,2]
[347072443,1735489879746,-10143.96,0.0001318,2]
[347072444,1735489879759,-4108.35,0.0001318,2]
[347072445,1735489879769,-2730.04,0.0001318,2]
[347072446,1735489879778,-2556.02,0.0001318,2]
[347072447,1735489879788,-1530.31,0.0001318,2]
[347072448,1735489879799,-6586.15,0.0001318,2]
[347072449,1735489879809,-4366.33,0.0001318,2]
[347072450,1735489879819,-681.34,0.0001318,2]
[347072451,1735489879829,-701.38,0.0001318,2]
[347072452,1735489879839,-2019.15,0.0001318,2]
[347072453,1735489879849,-500.0,0.0001318,2]
[347072454,1735489879858,-1697.84,0.0001318,2]
[347072455,1735489879867,-3038.02,0.0001318,2]
[347072456,1735489879877,-500.0,0.0001318,2]
[347072457,1735489879887,-852.73,0.0001318,2]
[347072458,1735489879896,-500.0,0.0001318,2]
[347072459,1735489879906,-1431.9,0.0001318,2]
[347072460,1735489879916,-500.0,0.0001318,2]
[347072461,1735489879925,-500.0,0.0001318,2]
[347072462,1735489879935,-896.87,0.0001318,2]
[347072463,1735489879945,-3588.08,0.0001318,2]
[347072464,1735489879955,-580.22,0.00013181,2]
[347072465,1735489879964,-2281.68,0.00013181,2]
[347072466,1735489879974,-1469.79,0.00013181,2]
[347072467,1735489879983,-1662.07,0.00013181,2]
[347072468,1735489879993,-500.0,0.00013181,2]
[347072469,1735489880003,-1592.56,0.00013181,2]
[347072470,1735489880012,-500.0,0.00013181,2]
[347072471,1735489880022,-3558.18,0.00013181,2]
[347072472,1735489880031,-643.7,0.00013181,2]
[347072473,1735489880040,-988.16,0.00013181,2]
[347072474,1735489880052,-500.0,0.00013181,2]
[347072475,1735489880061,-1652.5,0.00013181,2]
[347072476,1735489880071,-517.89,0.00013181,2]
[347072477,1735489880081,-900.7,0.00013181,2]
[347072478,1735489880091,-674.01,0.00013181,2]
[347072479,1735489880100,-5047.81,0.00013181,2]
[347072480,1735489880110,-500.0,0.00013181,2]
[347072481,1735489880120,-531.9,0.00013181,2]
[347072482,1735489880129,-603.5,0.00013181,2]
[347072483,1735489880139,-1051.42,0.00013181,2]
[347072484,1735489880149,-1024.0,0.00013181,2]
[347072485,1735489880159,-3190.14,0.00013181,2]
[347072486,1735489880169,-833.89,0.00013181,2]